Workbook

Sheet SatBuffer Design
B2: USDA- Natural Resources Conservation Service | E2: =Modifications!C1 -> IaSaturatedBuffer.xlsb | G2: =Modifications!C2 -> Iowa Version 3.0 | I2: =Modifications!B1 -> 2023-06-05
B3: Project Name | E3: Designed by: | H3: Date:
B4: Site Location | E4: Checked by: | H4: Date:
B5: County | AJ5: SATBUFF capacity | AL5: Drain capacity
AE6: 2 | AF6: =AE6-1 -> 1 | AJ6: =IF(OR(D14=0,D14=""),10000, D14*0.05) -> 10000 | AL6: =IF(D14>0,D14,10000) -> 
B7: Determine System Capacity: | AF7: 1 | AG7: CPT | AJ7: =IF(I11="",10000, I11*0.05) -> 10000 | AL7: =IF(I11>0,I11,10000) -> 
B8: Option 1 - Mainline Configuration | F8: Option 2 - Drainage Coefficient | AF8: 2 | AG8: Dual Wall | AJ8: =IF(I14>0,I14*0.05,10000) -> 10000 | AL8: =IF(I14>0,I14,10000) -> 10000
B9: Mainline tile size (in) | F9: Drainage area of tile system (ac) | AF9: 3 | AG9: Clay or Concrete
B10: Mainline tile grade (%) | F10: Drainage coefficient (inches/day) | AJ10: =MIN(AJ6:AJ9) -> 10000 | AL10: =MIN(AL6:AL8) -> 10000
B11: Mainline tile material | F11: Capacity of drainage system | I11: =IF(OR(I9="",I10=""),"", I9*I10*43560/12/24/3600) -> 
C12: =IF(AF6=2,0.012,IF(AF6=3, 0.013,AI13)) ->  | AH12: selected | AI12: n | AJ12: tile size
B13: Peak velocity in mainline given size and grade | D13: =IF(AJ13=0,"",1.49*(D10/100)^0.5*((AJ13/12/4)^(2/3))/C12) ->  | F13: Option 3 - Saturated Buffer design flow rate (Based on DRAINMOD Model or other source) | AF13: CPT | AH13: 1 | AI13: =IF(AJ13=0,"", INDEX(AH18:AH27,AH13)) ->  | AJ13: =INDEX(AF18:AF27,AH13) -> 0
B14: Peak flow from mainline size and grade | D14: =IF(AJ13=0,"",D13*PI()*(AJ13/2/12)^2) ->  | F14: (Optional user-defined flow rate)
H15: Enter design flow rate:
B16: Minimum Design Capacity: | D16: =IF(OR(AJ10=10000,AJ10=0),"",AJ10) ->  | F16: Source:
B17: (5% of Option 1, 2, or 3; whichever is lower) | AF17: Tile Dia. (in.) | AH17: n | AJ17: Q @ dist line grade
B19: Selected Design Capacity | E19: =IF(AND(ISNUMBER(D16),ISNUMBER(D19),D19<D16),"Design capacity must equal or exceed the minimum requirement","") ->  | AF19: 4 | AH19: 0.015 | AJ19: =(AF19^(8/3))*($AG$31)^0.5/(1631.7*AH19) -> 0
AF20: 5 | AH20: 0.015 | AJ20: 0
B21: Distribution Pipe Length: | AF21: 6 | AH21: 0.015 | AJ21: 0
B22: Distribution pipe min. grade (%) | AF22: 8 | AH22: 0.016 | AJ22: 0
B23: Design distribution pipe diameter (in) | D23: =IF(ISNUMBER(D22),AK30,"") ->  | AF23: 10 | AH23: 0.017 | AJ23: 0
B24: Distance from dist. pipe to outlet channel, L (ft) | AF24: 12 | AH24: 0.018 | AJ24: 0
B25: Ground surface elevation at WCS (ft) | AF25: 15 | AH25: 0.018 | AJ25: 0
B26: Depth of impervious layer (ft) | AF26: 18 | AH26: 0.02 | AJ26: 0
B27: Design water control weir elevation (ft) | AF27: 21 | AH27: 0.02 | AJ27: 0
B28: Baseflow water elevation in ditch or outlet (ft)
B29: Head at WCS, h1 | D29: =IF($D$26 <>"",D$26-(D$25-D27),"") ->  | AF29: CPT distribution pipe | AJ29: match Q | AK29: =MATCH(AG32,AJ19:AJ27,1) -> 
B30: Head at outlet, h2 | D30: =IF(D26<>"",D$26-(D$25-D28),"") ->  | AF30: min dia | AG30: 4 | AH30: in | AJ30: min dia | AK30: =MAX(AK31,IF(AND(ISNUMBER(AK29),$D$22>0),INDEX(AF19:AF27,1+AK29),AK31)) -> 6
AF31: grade, ft/ft | AG31: =D22/100 -> 0 | AH31: ft/ft | AJ31: Min dia Allow | AK31: 6 | AL31: enter minimum allowed saturated buffer lateral size in cell AK31
B32: Soil saturated hydraulic conductivity, Ksat (μm/sec) | AF32: flow req (cfs) | AG32: =IF(D19>0,D19,D16) -> 
D33: =IF(D32<>"",D32/1000000*3.28*60*60,"") -> 
B34: Unit flow from distribution pipe, q (ft3/hr per ft) | D34: =IF(D29<>"",IF(D29-D30>0,D33/(2*D24)*(D29^2-D30^2),""),"") -> 
B36: Distribution pipe length for min. design capacity | D36: =IF(ISNUMBER(D34),IF(D19<>"",ROUNDUP(D19*3600/D34,0),ROUNDUP(D16*3600/D34,0)),"") -> 
B37: Selected distribution pipe length (ft)
B38: Distribution pipe flow rate (ft3/hr) | D38: =IF(ISNUMBER(D34),D34*D37,"") -> 
B39: % of drainage system capacity handled by saturated buffer design | D39: =IF(ISNUMBER(D34),D34*D37/3600/(D16/0.05),"") -> 
B42: Retention Time:
B43: Soil water content, 1/3 bar (%)
B44: Soil bulk density, 1/3 bar (g/cc)
B45: Soil drainable porosity | D45: =1-D44/2.65-D43/100 -> 1
B47: Hydraulic retention volume (cubic feet) | D47: =IF(D37<>"",D37*D24*(D29-D30)*0.5*D45,"") -> 
B48: Hydraulic retention time | D48: =IF(D38<>"",D47/D38,"") -> 
B51: Notes:

Sheet Stability
A3: Slope stability inputs:
A4: L: Distance from dist. pipe to outlet channel (ft) | B4: =IF(ISNUMBER('SatBuffer Design'!D24), 'SatBuffer Design'!D24, "") -> 
A5: Egr: Ground surface elevation at streambank (ft) | U5: Check if any entries are blank
A6: Ew: Control weir elevation (ft) | B6: =IF(ISNUMBER('SatBuffer Design'!D27), 'SatBuffer Design'!D27, "") ->  | U6: =IF(OR(ISBLANK(B5), ISBLANK(B8), ISBLANK(B9), ISBLANK(B11), ISBLANK(B12), ISBLANK(B13)), 1, 2) -> 1
A7: Estr: Base flow water surface elevation (ft) | B7: =IF(ISNUMBER('SatBuffer Design'!D28), 'SatBuffer Design'!D28, "") -> 
A8: Ebed: Channel bed flowline elevation (ft)
A9: L2: Horizontal distance from streambank to bottom of bank toe (ft)
A10: θbank: Slope angle of streambank (degrees) | B10: =IF(OR(ISBLANK(B5), ISBLANK(B8), ISBLANK(B9)), "", DEGREES(ATAN((B5-B8)/B9))) -> 
A11: c': Soil cohesion (kPa)
A12: φ': Soil friction angle (degrees)
A13: ɣs: Soil unit weight (kN/m3)
A16: h0 (m) | B16: =IF(OR(B6 = "", ISBLANK(B8)), "", (B6-B8)/3.28084) -> 
A17: hb: Height of the bank (m) | B17: =IF(OR(ISBLANK(B5), ISBLANK(B8)), "", (B5-B8)/3.28084) -> 
A18: hwstr: Depth of water (m) | B18: =IF(OR(B7 = "", ISBLANK(B8)), "", (B7-B8)/3.28084) -> 
A19: hgwt: Approximation of groundwater table head at start of slope (m) | B19: =IF(OR(B4 = "", B10 = "", B16 = "", B17 = "", B18 = ""), "", SQRT((B16^2)+((B18^2)-(B16^2))*((B4/3.28084)/((B4/3.28084)+((B17-B18)/TAN(RADIANS(B10))))))) -> 
A20: hd (m) design head | B20: =IF(OR(B6 = "", B7 = ""), "", (B6-B7)/3.28084) -> 
A21: Lx (m) length of buffer | B21: =IF(OR(B4 = "", B10 = "", B17 = "", B18 = ""), "", (B4/3.28084)+((B17-B18)/TAN(RADIANS(B10)))) -> 
A22: P1 | B22: =IF(OR(B10 = "", ISBLANK(B12)), "", TAN(RADIANS(B12))/TAN(RADIANS(B10))) -> 
A23: P2 | B23: =IF(OR(B10="", ISBLANK(B11), ISBLANK(B13), B17 = ""), "", B11/(B13*B17*SIN(RADIANS(B10)))) -> 
A24: P3 | B24: =IF(OR(B10 = "", ISBLANK(B12), ISBLANK(B13), B17 = "", B18 = "", B19 = ""), "", (9.81*(B19-B18)*TAN(RADIANS(B12)))/((B13-9.81)*B17*SIN(RADIANS(B10)))) -> 
A25: P4 | B25: =IF(OR(B4 = "", B21 = ""), "", (B4/3.28084)/B21) -> 
A26: Estimated factor of safety | B26: =IF(OR(B22 = "", B23 = "", B24 = "", B25 = ""), "", IF(U6=1, "", 0.4974*B22+6.4594*B23-0.4536*B24+0.3255*B25)) -> 

Sheet Example Design
B2: USDA- Natural Resources Conservation Service | G2: NRCS Version 1.2 - 3/17/2017
B3: Project Name | C3: EXAMPLE ONLY | E3: Designed by: | F3: R.Book | H3: Date: | I3: 2017-02-16
B4: Site Location | E4: Checked by: | H4: Date:
B5: County | AJ5: SATBUFF capacity | AL5: Drain capacity
AF6: 1 | AJ6: =IF(OR(D14=0,D14=""),10000, D14*0.05) -> 0.01090309786 | AL6: =IF(D14>0,D14,10000) -> 0.2180619573
B7: Determine System Capacity: | AF7: 1 | AG7: CPT | AJ7: =IF(I11="",10000, I11*0.05) -> 0.01930013021 | AL7: =IF(I11>0,I11,10000) -> 0.3860026042
B8: Option 1 - Mainline Configuration | F8: Option 2 - Drainage Coefficient | AF8: 2 | AG8: Dual Wall | AJ8: =IF(I14>0,I14*0.05,10000) -> 10000 | AL8: =IF(I14>0,I14,10000) -> 10000
B9: Mainline tile size (in) | F9: Drainage area of tile system (ac) | I9: 24.5 | AF9: 3 | AG9: Clay or Concrete
B10: Mainline tile grade (%) | D10: 0.2 | F10: Drainage coefficient (inches/day) | I10: 0.375 | AJ10: =MIN(AJ6:AJ9) -> 0.01090309786 | AL10: =MIN(AL6:AL8) -> 0.2180619573
B11: Mainline tile material | F11: Capacity of drainage system | I11: =IF(OR(I9="",I10=""),"", I9*I10*43560/12/24/3600) -> 0.3860026042
C12: =IF(AF6=2,0.012,IF(AF6=3, 0.013,AI13)) -> 0.015 | AH12: selected | AI12: n | AJ12: tile size
B13: Peak velocity in mainline given size and grade | D13: =IF(AJ13=0,"",1.49*(D10/100)^0.5*((AJ13/12/4)^(2/3))/C12) -> 1.110580429 | F13: Option 3 - Saturated Buffer design flow rate (Based on DRAINMOD Model or other source) | AF13: CPT | AH13: 4 | AI13: =IF(AJ13=0,"", INDEX(AH18:AH27,AH13)) -> 0.015 | AJ13: =INDEX(AF18:AF27,AH13) -> 6
B14: Peak flow from mainline size and grade | D14: =IF(AJ13=0,"",D13*PI()*(AJ13/2/12)^2) -> 0.2180619573 | F14: Describe Value Used and source
B16: Minimum Design Capacity: | D16: =IF(OR(AJ10=10000,AJ10=0),"",AJ10) -> 0.01090309786
B17: (5% of Option 1, 2, or 3; whichever is lower) | AF17: Tile Dia. (in.) | AH17: n | AJ17: Q @ dist line grade
B19: Selected Design Capacity | D19: 0.011 | AF19: 4 | AH19: 0.015 | AJ19: =(AF19^(8/3))*($AG$31)^0.5/(1631.7*AH19) -> 0.07366763632
AF20: 5 | AH20: 0.015 | AJ20: 0.1335683118
B21: Size Distribution Pipe: | AF21: 6 | AH21: 0.015 | AJ21: 0.2171968019
B22: Distribution pipe min. grade (%) | D22: 0.2 | AF22: 8 | AH22: 0.016 | AJ22: 0.4385253127
B23: Design distribution pipe diameter (in) | D23: =IF(D22>0,AK30,"") -> 6 | AF23: 10 | AH23: 0.017 | AJ23: 0.7483287481
B24: Distance from dist. pipe to outlet channel, L (ft) | D24: 30 | AF24: 12 | AH24: 0.018 | AJ24: 1.14926144
B25: Ground surface elevation at WCS (ft) | D25: 100.3 | AF25: 15 | AH25: 0.018 | AJ25: 2.083749635
B26: Depth of impervious layer (ft) | D26: 10 | AF26: 18 | AH26: 0.02 | AJ26: 3.04956599
B27: Design water control weir elevation (ft) | D27: 99.3 | AF27: 21 | AH27: 0.02 | AJ27: 4.600052708
B28: Baseflow water elevation in ditch or outlet (ft) | D28: 93.3
B29: Head at WCS, h1 | D29: =D$26-(D$25-D27) -> 9 | AF29: CPT distribution pipe | AJ29: match Q | AK29: =MATCH(AG32,AJ19:AJ27,1) -> 
B30: Head at outlet, h2 | D30: =D$26-(D$25-D28) -> 3 | AF30: min dia | AG30: 4 | AH30: in | AJ30: min dia | AK30: =MAX(AK31,IF(ISNUMBER(AK29),INDEX(AF19:AF27,1+AK29),AK31)) -> 6
AF31: grade, ft/ft | AG31: =D22/100 -> 0.002 | AH31: ft/ft | AJ31: Min dia Allow | AK31: 6 | AL31: enter minimum allowed saturated buffer lateral size in cell AK31
B32: Soil saturated hydraulic conductivity, Ksat (μm/sec) | D32: 9.17 | AF32: flow req (cfs) | AG32: =IF(D19>0,D19,D16) -> 0.011
D33: =D32/1000000*3.28*60*60 -> 0.10827936
B34: Unit flow from distribution pipe, q (ft3/hr per ft) | D34: =IF(D29-D30>0,D33/(2*D24)*(D29^2-D30^2),"") -> 0.129935232
B36: Distribution pipe length for min. design capacity | D36: =IF(ISNUMBER(D34),ROUNDUP(D16*3600/D34,0),"") -> 303
B37: Selected distribution pipe length (ft) | D37: 310
B38: Distribution pipe flow rate (ft3/hr) | D38: =IF(ISNUMBER(D34),D34*D37,"") -> 40.27992192
B39: % of drainage system capacity handled by saturated buffer design | D39: =IF(ISNUMBER(D34),D34*D37/3600/(D16/0.05),"") -> 0.05131049606
B41: Retention Time:
B42: Soil water content, 1/3 bar (%)
B43: Soil bulk density, 1/3 bar (g/cc)
B44: Soil drainable porosity | D44: =1-D43/2.65-D42/100 -> 1
B46: Hydraulic retention volume (cubic feet) | D46: =IF(D36<>"",D36*D23*(D28-D29)*0.5*D44,"") -> 76628.7
B47: Hydraulic retention time | D47: =IF(D37<>"",D46/D37,"") -> 247.1893548
B49: Notes:
B50: In this example, we entered information for Options 1 and 2; Option 1 yielded a lower number and represents the drainage system capacity. The design is based on 5% of the drainage system capacity. If we make sure that the distribution pipe is laid on a grade at least 0.2% or steeper, a 6 inch distribution pipe diameter will suffice (it will have adequate capacity for the design flow). For this example, the spreadsheet automatically limited the minimum distribution pipe diameter to 6 inches. The receiving channel (ditch, in this case) is approximately 7 feet deep as measured from the proposed water control structure location to the baseflow. This is close to the 8 foot threshold in CPS 604, beyond which a slope stability analysis is needed. In this case, we determined that the ditch bank is not at risk of saturated bank failure.

Sheet Stability Example
A3: Slope stability inputs:
A4: L: Distance from dist. pipe to outlet channel (ft) | B4: 30
A5: Egr: Ground surface elevation at streambank (ft) | B5: 1206.5 | U5: Check if any entries are blank
A6: Ew: Control weir elevation (ft) | B6: 1206 | U6: =IF(OR(ISBLANK(B5), ISBLANK(B8), ISBLANK(B9), ISBLANK(B11), ISBLANK(B12), ISBLANK(B13)), 1, 2) -> 2
A7: Estr: Base flow water surface elevation (ft) | B7: 1200
A8: Ebed: Channel bed flowline elevation (ft) | B8: 1198
A9: L2: Horizontal distance from streambank to bottom of bank toe (ft) | B9: 10
A10: θbank: Slope angle of streambank (degrees) | B10: 40.36453657
A11: c': Soil cohesion (kPa) | B11: 8
A12: φ': Soil friction angle (degrees) | B12: 28
A13: ɣs: Soil unit weight (kN/m3) | B13: 19.1
A16: h0 (m) | B16: 2.438399922
A17: hb: Height of the bank (m) | B17: 2.590799917
A18: hwstr: Depth of water (m) | B18: 0.6095999805
A19: hgwt: Approximation of groundwater table head at start of slope (m) | B19: 1.226322904
A20: hd (m) design head | B20: 1.828799941
A21: Lx (m) length of buffer | B21: 11.47482316
A22: P1 | B22: 0.6255405078
A23: P2 | B23: 0.2496223313
A24: P3 | B24: 0.2063690494
A25: P4 | B25: 0.796875
A26: Estimated factor of safety | B26: 2.089328147

Sheet References
A1: References
A4: USDA – Natural Resources Conservation Service. National Engineering Handbook, Part 650 Engineering Field Handbook, Chapter 3 Hydraulics.
A6: USDA – Natural Resources Conservation Service. National Engineering Handbook, Part 650 Engineering Field Handbook, Chapter 19 Hydrology Tools for Wetland Identification and Analysis.
A8: USDA - Natural Resources Conservation Service. 2016. Field Office Technical Guide - Illinois. Conservation Practice Standard 604 - Saturated Buffer.
A10: USDA - Natural Resources Conservation Service. 2016. Field Office Technical Guide - Illinois. Conservation Practice Guidance 604 - Saturated Buffer.
A12: Utt, Nathan, D. Jaynes, J. Albertsen, S. Baker. 2015. Demonstrate and Evaluate Saturated Buffers at Field Scale to Reduce Nitrates and Phosphorus from Subsurface Field Drainage Systems. NRCS Conservation Innovation Grant 69-3A75-11-205 and FSA Order Number AG-3151-P-15-0168.

Sheet Modifications
B1: =MAX(A:A) -> 2023-06-05 | C1: IaSaturatedBuffer.xlsb | F1: Development Notes
C2: Iowa Version 3.0
E4: State Abreviation: | F4: IA | J4: National Technical Contact: | K4: Clare Prestwich
E5: State Contact: | F5: State Conservation Engineer | J5: USDA Center: | K5: WNTSC
E6: USDA-Service Center/Office: | F6: 210 Walnut Rm 693, Des Moines, IA | J6: Phone: | K6: 5034143075
E7: Phone: | F7: 515-284-4135 | J7: Email: | K7: clarence.prestwich@por.usda.gov
A12: Date | B12: Version | C12: Description
C13: Initial development by Matt Helmers and Laura Christianson, Iowa State University, for use in designing Denitrifying Bioreactors. Adjusted by Bruce Atherton and Jerry Walker, NRCS.
A14: 2016-05-02 | C14: Formatted for potential field use, and repurposed for the saturated buffer design, using criteria from draft CPS 604 Added adjustable Manning's 'n' for CPT based on tile size (ASAE EP260.5) Added inputs for Ksat and drainable porosity Added computation for hydraulic retention time
A15: 2016-06-09 | C15: Corrected units conversion errors.
C16: Added inputs for drainage area and drainage coefficient; calculation for system flow using these inputs
C17: Computation for saturated buffer design flow based on 15% of whichever is lower: capacity of mainline given grade and size, or system flow given drainage area and drainage coefficient
A18: 2016-08-09 | C18: Corrected design % of drainage capacity to use the capacity computed in the 6/9/16 update
A19: 2016-08-11 | C19: Added input for system capacity from a model or other source
A20: 2016-08-18 | B20: 1.0 | C20: Finalized version 1.0 for Illinois use
A21: 2017-01-12 | B21: 1.1 | C21: Updated References
C22: Added user input alerts and warnings
C23: Added guidance in cell notes on information expected
C24: Added Example Design tab as a reference EXAMPLE ONLY
C25: Added distribution pipe diameter sizing
A26: 2017-03-17 | B26: 1.2 | C26: Updated to national version and to meet March, 2017 pen-and-ink changes to CPS 604.
C27: This includes: buffer capacity 5% rather than 15% of drainage system capacity
C28: Hydraulic retention time calculation no longer needed: removed.
A29: 2017-04-24 | C29: Updated graphics added Disclaimer screen
A30: 2017-05-02 | C30: Added formating to match Illinois sheet
A31: 2017-05-03 | C31: additional formating issues.
A32: 2017-08-04 | C32: Added comments several input cell and enhanced cross section drawing to improve explaination of terms
A33: 2017-08-23 | C33: formula corrections
A34: 2017-11-16 | C34: Added Retention time
A35: 2018-01-02 | B35: 2 | C35: Finalized version 2.0 for Iowa use
C36: Minimum diameter for distribution pipe set at 6 inches.
A37: 2023-06-05 | B37: 3 | C37: Revised to allow user to set water table level to align with CPS 604 change.
C38: Added Stability tab to calculate slope stability.
